[Event "Live Chess"]
[Site "Chess.com"]
[Date "2024.06.02"]
[Round "-"]
[White "yarek"]
[Black "stevochess11"]
[Result "1-0"]
[WhiteElo "1754"]
[BlackElo "1682"]
[TimeControl "300"]
[EndTime "7:37:32 PDT"]
[Termination "yarek won by checkmate"]

1. e4 {[%clk 0:04:55.2]} 1... c5 {[%clk 0:04:58.5]} 2. d4 {[%clk 0:04:50.8]}
2... e6 {[%clk 0:04:51.9]} 3. c3 {[%clk 0:04:49.2]} 3... b6 {[%clk 0:04:50.7]}
4. Nf3 {[%clk 0:04:45]} 4... Bb7 {[%clk 0:04:45.1]} 5. Bd3 {[%clk 0:04:44.2]}
5... Be7 {[%clk 0:04:40.4]} 6. O-O {[%clk 0:04:42.2]} 6... cxd4 {[%clk
0:04:39.5]} 7. cxd4 {[%clk 0:04:40.4]} 7... d6 {[%clk 0:04:38.5]} 8. Nc3 {[%clk
0:04:34.3]} 8... a6 {[%clk 0:04:36.1]} 9. Be3 {[%clk 0:04:31.5]} 9... Nd7 {[%clk
0:04:32.1]} 10. Rc1 {[%clk 0:04:28.4]} 10... Ngf6 {[%clk 0:04:30.6]} 11. h3
{[%clk 0:04:26.1]} 11... O-O {[%clk 0:04:27.9]} 12. Re1 {[%clk 0:04:20.4]} 12...
h6 {[%clk 0:04:17.4]} 13. Bb1 {[%clk 0:04:12.9]} 13... Qb8 {[%clk 0:03:55.9]}
14. Bf4 {[%clk 0:04:04.9]} 14... Rc8 {[%clk 0:03:51.3]} 15. Qd3 {[%clk
0:04:00.7]} 15... e5 {[%clk 0:03:39.9]} 16. dxe5 {[%clk 0:03:51.4]} 16... dxe5
{[%clk 0:03:25.3]} 17. Bh2 {[%clk 0:03:37]} 17... Rd8 {[%clk 0:03:12.6]} 18. Qe2
{[%clk 0:03:31.4]} 18... Nc5 {[%clk 0:03:10.2]} 19. Nxe5 {[%clk 0:03:20.8]}
19... Bd6 {[%clk 0:03:02.7]} 20. f4 {[%clk 0:03:06.5]} 20... Nfxe4 {[%clk
0:02:32.1]} 21. Nxe4 {[%clk 0:03:03.2]} 21... Nxe4 {[%clk 0:02:31.1]} 22. Bxe4
{[%clk 0:03:00.8]} 22... Bxe4 {[%clk 0:02:29.9]} 23. Qxe4 {[%clk 0:02:58.9]}
23... f6 {[%clk 0:02:26.5]} 24. Qd5+ {[%clk 0:02:53.3]} 24... Kh7 {[%clk
0:02:23.4]} 25. Nf7 {[%clk 0:02:35.8]} 25... Bc5+ {[%clk 0:02:20]} 26. Rxc5
{[%clk 0:02:32.7]} 26... Rxd5 {[%clk 0:02:17.8]} 27. Rxd5 {[%clk 0:02:32.3]}
27... Qb7 {[%clk 0:02:10]} 28. Rd8 {[%clk 0:02:06.5]} 28... Rxd8 {[%clk
0:02:04.5]} 29. Nxd8 {[%clk 0:02:06.4]} 29... Qd7 {[%clk 0:01:58.5]} 30. Ne6
{[%clk 0:02:01.1]} 30... Qd2 {[%clk 0:01:50.5]} 31. Bg3 {[%clk 0:01:50.3]} 31...
Qxb2 {[%clk 0:01:29.9]} 32. f5 {[%clk 0:01:48.6]} 32... Qxa2 {[%clk 0:01:18.4]}
33. Nf8+ {[%clk 0:01:46]} 33... Kg8 {[%clk 0:01:14.9]} 34. Ng6 {[%clk
0:01:45.6]} 34... Qa3 {[%clk 0:01:07.6]} 35. Re8+ {[%clk 0:01:43.8]} 35... Kf7
{[%clk 0:01:05.3]} 36. Rf8+ {[%clk 0:01:37.1]} 36... Qxf8 {[%clk 0:01:03.2]} 37.
Nxf8 {[%clk 0:01:36.7]} 37... Kxf8 {[%clk 0:01:02.4]} 38. Bc7 {[%clk 0:01:32.8]}
38... b5 {[%clk 0:01:01]} 39. Kf2 {[%clk 0:01:32.4]} 39... Ke7 {[%clk
0:00:59.9]} 40. Ke3 {[%clk 0:01:32]} 40... Kd7 {[%clk 0:00:58.4]} 41. Ba5 {[%clk
0:01:29.8]} 41... Kd6 {[%clk 0:00:56.6]} 42. Kd4 {[%clk 0:01:29.4]} 42... Kc6
{[%clk 0:00:54.3]} 43. g4 {[%clk 0:01:23.7]} 43... Kd6 {[%clk 0:00:51.6]} 44. h4
{[%clk 0:01:21.9]} 44... Kc6 {[%clk 0:00:49]} 45. Bb4 {[%clk 0:01:20.7]} 45...
Kd7 {[%clk 0:00:44]} 46. Bf8 {[%clk 0:01:20]} 46... a5 {[%clk 0:00:38.8]} 47.
Bxg7 {[%clk 0:01:19]} 47... a4 {[%clk 0:00:36.5]} 48. Bxf6 {[%clk 0:01:17.6]}
48... b4 {[%clk 0:00:34.7]} 49. Kc4 {[%clk 0:01:16.6]} 49... a3 {[%clk
0:00:34.6]} 50. Kxb4 {[%clk 0:01:14.6]} 50... a2 {[%clk 0:00:34.5]} 51. Kc4
{[%clk 0:01:13.3]} 51... a1=B {[%clk 0:00:33.3]} 52. Bxa1 {[%clk 0:01:11.2]}
52... Ke8 {[%clk 0:00:32.2]} 53. Kd5 {[%clk 0:01:10.7]} 53... Kf7 {[%clk
0:00:32.1]} 54. Ke5 {[%clk 0:01:08]} 54... Kg8 {[%clk 0:00:32]} 55. f6 {[%clk
0:01:06.1]} 55... Kh7 {[%clk 0:00:31.9]} 56. Ke6 {[%clk 0:01:04.4]} 56... h5
{[%clk 0:00:31.8]} 57. g5 {[%clk 0:00:59.9]} 57... Kg6 {[%clk 0:00:30.7]} 58. f7
{[%clk 0:00:57.5]} 58... Kh7 {[%clk 0:00:30.6]} 59. f8=Q {[%clk 0:00:51.6]}
59... Kg6 {[%clk 0:00:29.2]} 60. Qf6+ {[%clk 0:00:50.1]} 60... Kh7 {[%clk
0:00:27.2]} 61. Qg7# {[%clk 0:00:49.1]} 1-0

[Event "Live Chess"]
[Site "Chess.com"]
[Date "2024.06.02"]
[Round "-"]
[White "Ksenia_2013"]
[Black "davigator"]
[Result "0-1"]
[WhiteElo "965"]
[BlackElo "2338"]
[TimeControl "300"]
[EndTime "7:37:46 PDT"]
[Termination "davigator won by checkmate"]

1. d4 {[%clk 0:04:58.6]} 1... Nf6 {[%clk 0:04:58.2]} 2. Nf3 {[%clk 0:04:55.8]}
2... e6 {[%clk 0:04:57.4]} 3. g3 {[%clk 0:04:52.7]} 3... b5 {[%clk 0:04:55.9]}
4. Bg2 {[%clk 0:04:51.6]} 4... Bb7 {[%clk 0:04:54.6]} 5. O-O {[%clk 0:04:50]}
5... c5 {[%clk 0:04:53.6]} 6. dxc5 {[%clk 0:04:48.1]} 6... Bxc5 {[%clk
0:04:51.9]} 7. Nc3 {[%clk 0:04:46.8]} 7... Qb6 {[%clk 0:04:50.2]} 8. Ne5 {[%clk
0:04:41]} 8... Bxg2 {[%clk 0:04:45.1]} 9. Kxg2 {[%clk 0:04:38.7]} 9... d6 {[%clk
0:04:44.6]} 10. Nf3 {[%clk 0:04:26.3]} 10... O-O {[%clk 0:04:43.1]} 11. Kg1
{[%clk 0:04:24.9]} 11... a5 {[%clk 0:04:39.4]} 12. Be3 {[%clk 0:04:21.6]} 12...
Bxe3 {[%clk 0:04:36.6]} 13. fxe3 {[%clk 0:04:20.3]} 13... b4 {[%clk 0:04:35.1]}
14. Ne4 {[%clk 0:04:17.9]} 14... Qxe3+ {[%clk 0:04:34]} 15. Kh1 {[%clk
0:04:16.1]} 15... Qxe4 {[%clk 0:04:32.8]} 16. Qxd6 {[%clk 0:04:08.6]} 16... Nbd7
{[%clk 0:04:31.9]} 17. Qd1 {[%clk 0:03:46.6]} 17... Rfc8 {[%clk 0:04:28.4]} 18.
Kg1 {[%clk 0:03:44.4]} 18... Rxc2 {[%clk 0:04:25.7]} 19. Ng5 {[%clk 0:03:40.7]}
19... Qe3+ {[%clk 0:04:24.6]} 20. Kh1 {[%clk 0:03:33.6]} 20... Rxb2 {[%clk
0:04:23.6]} 21. Rb1 {[%clk 0:03:21]} 21... Rd2 {[%clk 0:04:21.5]} 22. Qa4 {[%clk
0:03:16.6]} 22... Qxg5 {[%clk 0:04:20.1]} 23. Rbd1 {[%clk 0:03:12.4]} 23... Qd5+
{[%clk 0:04:17.5]} 24. Kg1 {[%clk 0:03:09.1]} 24... Qc5+ {[%clk 0:04:09.5]} 25.
Kh1 {[%clk 0:03:05.9]} 25... Rxe2 {[%clk 0:04:04.5]} 26. Rde1 {[%clk 0:02:56.5]}
26... Qd5+ {[%clk 0:04:02.6]} 27. Kg1 {[%clk 0:02:54.2]} 27... Qg2# {[%clk
0:04:02.2]} 0-1

[Event "Live Chess"]
[Site "Chess.com"]
[Date "2024.06.02"]
[Round "-"]
[White "ivan_1968"]
[Black "elephantgerrald"]
[Result "1-0"]
[WhiteElo "1811"]
[BlackElo "852"]
[TimeControl "300"]
[EndTime "7:38:21 PDT"]
[Termination "ivan_1968 won by checkmate"]

1. e4 {[%clk 0:04:56.1]} 1... e5 {[%clk 0:04:58.1]} 2. d4 {[%clk 0:04:54.5]}
2... exd4 {[%clk 0:04:54.9]} 3. c3 {[%clk 0:04:53.2]} 3... dxc3 {[%clk
0:04:50.1]} 4. Bc4 {[%clk 0:04:51.2]} 4... cxb2 {[%clk 0:04:48.8]} 5. Bxb2
{[%clk 0:04:49.9]} 5... Nf6 {[%clk 0:04:43.7]} 6. e5 {[%clk 0:04:44.2]} 6...
Bb4+ {[%clk 0:04:26.3]} 7. Nc3 {[%clk 0:04:40.9]} 7... Bxc3+ {[%clk 0:04:24.7]}
8. Bxc3 {[%clk 0:04:39.4]} 8... Nh5 {[%clk 0:04:22.9]} 9. Qxh5 {[%clk
0:04:37.2]} 9... O-O {[%clk 0:04:18.8]} 10. Nf3 {[%clk 0:04:15.5]} 10... d6
{[%clk 0:04:13.3]} 11. Ng5 {[%clk 0:04:01.5]} 11... g6 {[%clk 0:04:07.5]} 12.
Qxh7# {[%clk 0:03:59]} 1-0

[Event "Live Chess"]
[Site "Chess.com"]
[Date "2024.06.02"]
[Round "-"]
[White "Anareza_Firouzja"]
[Black "ameetghasi100"]
[Result "0-1"]
[WhiteElo "1881"]
[BlackElo "2749"]
[TimeControl "300"]
[EndTime "7:38:25 PDT"]
[Termination "ameetghasi100 won by resignation"]

1. e4 {[%clk 0:04:56.5]} 1... b6 {[%clk 0:04:59.4]} 2. d4 {[%clk 0:04:53.3]}
2... Bb7 {[%clk 0:04:59.1]} 3. Bd3 {[%clk 0:04:52.7]} 3... g6 {[%clk 0:04:58.4]}
4. Ne2 {[%clk 0:04:52.1]} 4... a6 {[%clk 0:04:58]} 5. f3 {[%clk 0:04:51.5]} 5...
h6 {[%clk 0:04:57.6]} 6. Be3 {[%clk 0:04:50.8]} 6... Bg7 {[%clk 0:04:57]} 7. c4
{[%clk 0:04:46.6]} 7... d6 {[%clk 0:04:55.4]} 8. Qd2 {[%clk 0:04:45]} 8... Nd7
{[%clk 0:04:55.1]} 9. Nbc3 {[%clk 0:04:43.7]} 9... c5 {[%clk 0:04:54.8]} 10. a4
{[%clk 0:04:35.4]} 10... Ngf6 {[%clk 0:04:54.4]} 11. a5 {[%clk 0:04:24.7]} 11...
cxd4 {[%clk 0:04:51.8]} 12. Bxd4 {[%clk 0:04:21.7]} 12... bxa5 {[%clk
0:04:50.3]} 13. Nd5 {[%clk 0:04:16.8]} 13... Bxd5 {[%clk 0:04:49.6]} 14. cxd5
{[%clk 0:04:15.9]} 14... O-O {[%clk 0:04:49.2]} 15. Qxa5 {[%clk 0:04:13.4]}
15... Qb8 {[%clk 0:04:48.3]} 16. O-O {[%clk 0:04:05.3]} 16... Rc8 {[%clk
0:04:47.5]} 17. Ra2 {[%clk 0:03:52.3]} 17... Nh5 {[%clk 0:04:45.5]} 18. Bxg7
{[%clk 0:03:47.8]} 18... Nxg7 {[%clk 0:04:44.9]} 19. Nc3 {[%clk 0:03:12.4]}
19... Nc5 {[%clk 0:04:43.9]} 20. Be2 {[%clk 0:02:54]} 20... Nb3 {[%clk
0:04:43.1]} 21. Qa4 {[%clk 0:02:37.7]} 21... Qb6+ {[%clk 0:04:39.9]} 22. Kh1
{[%clk 0:02:33.4]} 22... Nd4 {[%clk 0:04:39.2]} 23. Qa5 {[%clk 0:02:10.4]} 23...
Qxa5 {[%clk 0:04:35.5]} 24. Rxa5 {[%clk 0:02:10.3]} 24... Rxc3 {[%clk 0:04:35]}
25. bxc3 {[%clk 0:02:04.1]} 25... Nxe2 {[%clk 0:04:34.5]} 26. Rfa1 {[%clk
0:01:57.7]} 26... Nxc3 {[%clk 0:04:29.8]} 27. Rxa6 {[%clk 0:01:57.2]} 27... Rxa6
{[%clk 0:04:29.3]} 28. Rxa6 {[%clk 0:01:56]} 28... f5 {[%clk 0:04:29]} 29. exf5
{[%clk 0:01:50]} 29... Nxf5 {[%clk 0:04:27.6]} 30. g4 {[%clk 0:01:44.5]} 30...
Ne3 {[%clk 0:04:25.2]} 31. Kg1 {[%clk 0:01:37.3]} 31... Ncxd5 {[%clk 0:04:24.5]}
32. Kf2 {[%clk 0:01:33.4]} 32... Kf7 {[%clk 0:04:23.8]} 33. h4 {[%clk
0:01:31.8]} 33... Nc4 {[%clk 0:04:21]} 34. Ra4 {[%clk 0:01:24.7]} 34... Ncb6
{[%clk 0:04:19.1]} 35. Re4 {[%clk 0:01:20.3]} 35... e5 {[%clk 0:04:17.7]} 36.
Kg3 {[%clk 0:01:17.5]} 36... Nf4 {[%clk 0:04:16.1]} 37. Rb4 {[%clk 0:01:13.8]}
37... Nd7 {[%clk 0:04:15.1]} 38. Rb7 {[%clk 0:01:12.4]} 38... Ke6 {[%clk
0:04:14.1]} 39. g5 {[%clk 0:01:09.4]} 39... hxg5 {[%clk 0:04:13.2]} 40. hxg5
{[%clk 0:01:09.3]} 40... Ne2+ {[%clk 0:04:10.6]} 41. Kg4 {[%clk 0:01:07.3]}
41... Nd4 {[%clk 0:04:10.2]} 42. Ra7 {[%clk 0:01:04.1]} 42... Nf5 {[%clk
0:04:08.3]} 43. Ra8 {[%clk 0:01:00.4]} 43... d5 {[%clk 0:04:07.5]} 44. Rg8
{[%clk 0:00:55.6]} 44... Ne7 {[%clk 0:04:06.8]} 45. Ra8 {[%clk 0:00:52.5]} 45...
d4 {[%clk 0:04:06.3]} 46. f4 {[%clk 0:00:51.4]} 46... e4 {[%clk 0:04:05]} 47.
Ra6+ {[%clk 0:00:48]} 47... Kf7 {[%clk 0:04:03.9]} 48. Rd6 {[%clk 0:00:42.6]}
48... e3 {[%clk 0:04:01.4]} 49. Rxd4 {[%clk 0:00:33.2]} 49... Nc5 {[%clk
0:03:58.1]} 50. Rd1 {[%clk 0:00:30.9]} 50... Nf5 {[%clk 0:03:56.4]} 51. Re1
{[%clk 0:00:25]} 51... Nd3 {[%clk 0:03:52.8]} 52. Re2 {[%clk 0:00:21.4]} 52...
Ke6 {[%clk 0:03:52.2]} 53. Kf3 {[%clk 0:00:16.9]} 53... Nd4+ {[%clk 0:03:51.3]}
54. Kxe3 {[%clk 0:00:15.6]} 54... Nxe2 {[%clk 0:03:50.7]} 55. Kxe2 {[%clk
0:00:13.8]} 55... Nxf4+ {[%clk 0:03:50.2]} 56. Kf3 {[%clk 0:00:13.7]} 56... Kf5
{[%clk 0:03:49.5]} 57. Kg3 {[%clk 0:00:12.9]} 57... Ne6 {[%clk 0:03:49.1]} 58.
Kf3 {[%clk 0:00:12.8]} 58... Nxg5+ {[%clk 0:03:48.6]} 0-1

[Event "Live Chess"]
[Site "Chess.com"]
[Date "2024.06.02"]
[Round "-"]
[White "GoldsmanB"]
[Black "NAZRIZ1977"]
[Result "0-1"]
[WhiteElo "1110"]
[BlackElo "2076"]
[TimeControl "300"]
[EndTime "7:38:25 PDT"]
[Termination "NAZRIZ1977 won by resignation"]

1. d4 {[%clk 0:04:58.6]} 1... d5 {[%clk 0:04:55.6]} 2. Bf4 {[%clk 0:04:57.5]}
2... e6 {[%clk 0:04:53.7]} 3. Nf3 {[%clk 0:04:55]} 3... f5 {[%clk 0:04:53.1]} 4.
e3 {[%clk 0:04:53.5]} 4... Nf6 {[%clk 0:04:52.6]} 5. c3 {[%clk 0:04:50.4]} 5...
Nbd7 {[%clk 0:04:51.8]} 6. Nbd2 {[%clk 0:04:49.4]} 6... Bd6 {[%clk 0:04:51.2]}
7. Bg3 {[%clk 0:04:47.6]} 7... O-O {[%clk 0:04:49.4]} 8. Qb3 {[%clk 0:04:46.9]}
8... Ne4 {[%clk 0:04:46.4]} 9. Be2 {[%clk 0:04:45.3]} 9... Ndf6 {[%clk
0:04:44.2]} 10. Bxd6 {[%clk 0:04:43.3]} 10... Qxd6 {[%clk 0:04:42.5]} 11. c4
{[%clk 0:04:39.7]} 11... c6 {[%clk 0:04:40.9]} 12. c5 {[%clk 0:04:38.3]} 12...
Qc7 {[%clk 0:04:37.5]} 13. Ne5 {[%clk 0:04:36.5]} 13... Nxd2 {[%clk 0:04:35.2]}
14. Kxd2 {[%clk 0:04:34.3]} 14... Ne4+ {[%clk 0:04:34.6]} 15. Ke1 {[%clk
0:04:31]} 15... Qa5+ {[%clk 0:04:27.3]} 16. Kf1 {[%clk 0:04:22.8]} 16... Nd2+
{[%clk 0:04:25.8]} 0-1

[Event "Live Chess"]
[Site "Chess.com"]
[Date "2024.06.02"]
[Round "-"]
[White "r0ad_t0-gm"]
[Black "Hoogleboogle"]
[Result "1-0"]
[WhiteElo "2253"]
[BlackElo "1258"]
[TimeControl "300"]
[EndTime "7:38:45 PDT"]
[Termination "r0ad_t0-gm won by checkmate"]

1. Nf3 {[%clk 0:04:59]} 1... d5 {[%clk 0:04:56]} 2. g3 {[%clk 0:04:58.2]} 2...
Nc6 {[%clk 0:04:52.8]} 3. d4 {[%clk 0:04:56.5]} 3... Nf6 {[%clk 0:04:49.1]} 4.
Bg2 {[%clk 0:04:55.4]} 4... Bg4 {[%clk 0:04:45.5]} 5. O-O {[%clk 0:04:54.6]}
5... e6 {[%clk 0:04:32.9]} 6. h3 {[%clk 0:04:52.9]} 6... Bh5 {[%clk 0:04:29.5]}
7. c4 {[%clk 0:04:51.1]} 7... Bg6 {[%clk 0:04:16.5]} 8. Nc3 {[%clk 0:04:49.6]}
8... Be4 {[%clk 0:04:11.6]} 9. Bf4 {[%clk 0:04:41.2]} 9... Bd6 {[%clk
0:04:00.2]} 10. Bxd6 {[%clk 0:04:36.8]} 10... Qxd6 {[%clk 0:03:55.1]} 11. e3
{[%clk 0:04:33.8]} 11... dxc4 {[%clk 0:03:45.7]} 12. Nxe4 {[%clk 0:04:31.3]}
12... Nxe4 {[%clk 0:03:43.1]} 13. Ne5 {[%clk 0:04:29.8]} 13... Nf6 {[%clk
0:03:33.7]} 14. Nxc6 {[%clk 0:04:27.4]} 14... bxc6 {[%clk 0:03:32.6]} 15. Qa4
{[%clk 0:04:26.1]} 15... Rb8 {[%clk 0:03:21.5]} 16. Qxc4 {[%clk 0:04:19.2]}
16... Rxb2 {[%clk 0:03:14.3]} 17. Rab1 {[%clk 0:04:16.5]} 17... Rxb1 {[%clk
0:03:12]} 18. Rxb1 {[%clk 0:04:16.4]} 18... O-O {[%clk 0:03:10.6]} 19. Qxc6
{[%clk 0:04:14.3]} 19... Nd5 {[%clk 0:03:00.2]} 20. Bxd5 {[%clk 0:04:08.2]}
20... Qxd5 {[%clk 0:02:53.4]} 21. Qxd5 {[%clk 0:04:06.7]} 21... exd5 {[%clk
0:02:51.6]} 22. Rb7 {[%clk 0:04:05.8]} 22... Rc8 {[%clk 0:02:45.8]} 23. Rxa7
{[%clk 0:04:05]} 23... c5 {[%clk 0:02:44.4]} 24. dxc5 {[%clk 0:04:04.9]} 24...
g6 {[%clk 0:02:39.2]} 25. Ra5 {[%clk 0:04:03.8]} 25... Kg7 {[%clk 0:02:35.9]}
26. Kf1 {[%clk 0:04:02.8]} 26... Kf6 {[%clk 0:02:34.2]} 27. Ke2 {[%clk
0:04:02.5]} 27... Ke5 {[%clk 0:02:33]} 28. Kd3 {[%clk 0:04:02.1]} 28... f5
{[%clk 0:02:28.5]} 29. f4+ {[%clk 0:03:59.2]} 29... Ke6 {[%clk 0:01:35.4]} 30.
Kd4 {[%clk 0:03:59.1]} 30... h6 {[%clk 0:01:29.3]} 31. Ra6+ {[%clk 0:03:57.6]}
31... Kf7 {[%clk 0:01:27.8]} 32. Kxd5 {[%clk 0:03:57.5]} 32... g5 {[%clk
0:01:24.3]} 33. c6 {[%clk 0:03:55.5]} 33... gxf4 {[%clk 0:01:20.7]} 34. exf4
{[%clk 0:03:55.4]} 34... h5 {[%clk 0:01:19.3]} 35. Kd6 {[%clk 0:03:53.9]} 35...
Ke8 {[%clk 0:01:16.9]} 36. Ra7 {[%clk 0:03:52.8]} 36... Rd8+ {[%clk 0:01:09.9]}
37. Rd7 {[%clk 0:03:51]} 37... Rxd7+ {[%clk 0:01:07.2]} 38. cxd7+ {[%clk
0:03:50.3]} 38... Kd8 {[%clk 0:01:06.3]} 39. a4 {[%clk 0:03:32.4]} 39... h4
{[%clk 0:01:03.8]} 40. a5 {[%clk 0:03:32.3]} 40... hxg3 {[%clk 0:01:01.2]} 41.
a6 {[%clk 0:03:32.2]} 41... g2 {[%clk 0:01:00.2]} 42. a7 {[%clk 0:03:32.1]}
42... g1=Q {[%clk 0:00:54.5]} 43. a8=R# {[%clk 0:03:31.3]} 1-0

[Event "Live Chess"]
[Site "Chess.com"]
[Date "2024.06.02"]
[Round "-"]
[White "grillage"]
[Black "Mangoalo"]
[Result "1-0"]
[WhiteElo "1857"]
[BlackElo "1066"]
[TimeControl "300"]
[EndTime "7:38:47 PDT"]
[Termination "grillage won by checkmate"]

1. d4 {[%clk 0:04:55.3]} 1... e5 {[%clk 0:04:59.2]} 2. dxe5 {[%clk 0:04:53.1]}
2... Nc6 {[%clk 0:04:58.2]} 3. Nf3 {[%clk 0:04:51.9]} 3... f6 {[%clk 0:04:57.4]}
4. exf6 {[%clk 0:04:46.6]} 4... Nxf6 {[%clk 0:04:57.3]} 5. Bg5 {[%clk
0:04:45.7]} 5... Bb4+ {[%clk 0:04:55]} 6. c3 {[%clk 0:04:40]} 6... Be7 {[%clk
0:04:53.5]} 7. Nbd2 {[%clk 0:04:38.8]} 7... h6 {[%clk 0:04:52.3]} 8. Bh4 {[%clk
0:04:34.9]} 8... g5 {[%clk 0:04:51.5]} 9. Bg3 {[%clk 0:04:33.2]} 9... g4 {[%clk
0:04:51]} 10. Nh4 {[%clk 0:04:31.2]} 10... d6 {[%clk 0:04:44.7]} 11. Ng6 {[%clk
0:04:27.2]} 11... Rg8 {[%clk 0:04:40.7]} 12. Nxe7 {[%clk 0:04:26.2]} 12... Qxe7
{[%clk 0:04:37.8]} 13. e3 {[%clk 0:04:24]} 13... Bd7 {[%clk 0:04:36]} 14. Bc4
{[%clk 0:04:22.6]} 14... O-O-O {[%clk 0:04:35.9]} 15. Bxg8 {[%clk 0:04:21]}
15... Rxg8 {[%clk 0:04:35]} 16. Qc2 {[%clk 0:04:09.8]} 16... Ne5 {[%clk
0:04:31.9]} 17. O-O-O {[%clk 0:04:02.3]} 17... h5 {[%clk 0:04:25]} 18. Qa4
{[%clk 0:03:58]} 18... Bxa4 {[%clk 0:04:18.1]} 19. b3 {[%clk 0:03:44.3]} 19...
Qe6 {[%clk 0:04:12]} 20. bxa4 {[%clk 0:03:30]} 20... Qxa2 {[%clk 0:04:09.7]} 21.
Nb1 {[%clk 0:03:17.6]} 21... Nd3+ {[%clk 0:04:04.7]} 22. Rxd3 {[%clk 0:03:14.9]}
22... Ne4 {[%clk 0:03:58.5]} 23. Rf1 {[%clk 0:02:41.3]} 23... Rg5 {[%clk
0:03:54.8]} 24. f3 {[%clk 0:02:36.9]} 24... Rc5 {[%clk 0:03:46.9]} 25. Rf2
{[%clk 0:02:32.1]} 25... Nxf2 {[%clk 0:03:38.9]} 26. Rd2 {[%clk 0:02:26.4]}
26... gxf3 {[%clk 0:03:34.6]} 27. Rxa2 {[%clk 0:02:22.6]} 27... fxg2 {[%clk
0:03:32.1]} 28. Bxf2 {[%clk 0:02:20.8]} 28... h4 {[%clk 0:03:10.7]} 29. h3
{[%clk 0:02:14]} 29... a5 {[%clk 0:03:07.6]} 30. Bg1 {[%clk 0:02:12.5]} 30...
Rg5 {[%clk 0:03:04.2]} 31. Nd2 {[%clk 0:02:05.8]} 31... c5 {[%clk 0:02:58.4]}
32. Ne4 {[%clk 0:01:59.6]} 32... Rg6 {[%clk 0:02:53.2]} 33. Rf2 {[%clk
0:01:55.8]} 33... Kd7 {[%clk 0:02:50.9]} 34. Kd2 {[%clk 0:01:53.4]} 34... Kc6
{[%clk 0:02:46.5]} 35. Ke2 {[%clk 0:01:52.3]} 35... b5 {[%clk 0:02:44.8]} 36.
axb5+ {[%clk 0:01:50.3]} 36... Kxb5 {[%clk 0:02:40.8]} 37. Kf3 {[%clk
0:01:48.5]} 37... a4 {[%clk 0:02:39.5]} 38. Rxg2 {[%clk 0:01:45.9]} 38... Rxg2
{[%clk 0:02:38.5]} 39. Kxg2 {[%clk 0:01:45]} 39... a3 {[%clk 0:02:38.4]} 40.
Nxd6+ {[%clk 0:01:27.9]} 40... Ka4 {[%clk 0:02:35.7]} 41. e4 {[%clk 0:00:48.3]}
41... a2 {[%clk 0:02:27.5]} 42. Bxc5 {[%clk 0:00:44.6]} 42... a1=Q {[%clk
0:02:26.5]} 43. Bd4 {[%clk 0:00:35.8]} 43... Qb2+ {[%clk 0:02:22.6]} 44. Kf3
{[%clk 0:00:34.8]} 44... Qd2 {[%clk 0:02:11.8]} 45. Kg4 {[%clk 0:00:30.7]} 45...
Qh6 {[%clk 0:02:00]} 46. Nf5 {[%clk 0:00:28.6]} 46... Qe6 {[%clk 0:01:49.9]} 47.
e5 {[%clk 0:00:24.9]} 47... Kb5 {[%clk 0:01:45.8]} 48. Kg5 {[%clk 0:00:23.9]}
48... Kc4 {[%clk 0:01:42.6]} 49. Nxh4 {[%clk 0:00:22.3]} 49... Qxh3 {[%clk
0:01:38.5]} 50. Nf5 {[%clk 0:00:19.5]} 50... Qg2+ {[%clk 0:01:32.5]} 51. Kf6
{[%clk 0:00:18.9]} 51... Qc6+ {[%clk 0:01:28.8]} 52. e6 {[%clk 0:00:17.2]} 52...
Qe8 {[%clk 0:01:14.5]} 53. Nd6+ {[%clk 0:00:15.8]} 53... Kd5 {[%clk 0:01:12.5]}
54. Nxe8 {[%clk 0:00:15.5]} 54... Kc6 {[%clk 0:01:11.3]} 55. Kf7 {[%clk
0:00:15.2]} 55... Kd5 {[%clk 0:01:09.6]} 56. Nf6+ {[%clk 0:00:14.7]} 56... Kd6
{[%clk 0:01:09.2]} 57. e7 {[%clk 0:00:14.3]} 57... Kc7 {[%clk 0:01:08.1]} 58.
e8=Q {[%clk 0:00:13.7]} 58... Kd6 {[%clk 0:01:06.4]} 59. Qb5 {[%clk 0:00:11.7]}
59... Kc7 {[%clk 0:01:05.1]} 60. Ne4 {[%clk 0:00:10.9]} 60... Kd8 {[%clk
0:01:04.3]} 61. Ke6 {[%clk 0:00:10.3]} 61... Kc8 {[%clk 0:01:03.6]} 62. Kd6
{[%clk 0:00:08.7]} 62... Kd8 {[%clk 0:01:02.5]} 63. Qb8# {[%clk 0:00:08.2]} 1-0

[Event "Live Chess"]
[Site "Chess.com"]
[Date "2024.06.02"]
[Round "-"]
[White "CarmelJane"]
[Black "Ginger_GM"]
[Result "0-1"]
[WhiteElo "2024"]
[BlackElo "2665"]
[TimeControl "300"]
[EndTime "7:38:48 PDT"]
[Termination "Ginger_GM won by resignation"]

1. e4 {[%clk 0:04:57.5]} 1... g6 {[%clk 0:04:58.1]} 2. d4 {[%clk 0:04:53.4]}
2... Bg7 {[%clk 0:04:56.4]} 3. Nc3 {[%clk 0:04:52.1]} 3... b6 {[%clk 0:04:55.1]}
4. f4 {[%clk 0:04:41.2]} 4... Bb7 {[%clk 0:04:53.4]} 5. Nf3 {[%clk 0:04:38.7]}
5... c5 {[%clk 0:04:49.4]} 6. Be3 {[%clk 0:04:33.8]} 6... Nf6 {[%clk 0:04:45.6]}
7. dxc5 {[%clk 0:04:22.8]} 7... Nxe4 {[%clk 0:04:43]} 8. Nxe4 {[%clk 0:04:10.5]}
8... Bxe4 {[%clk 0:04:42.9]} 9. c3 {[%clk 0:03:55.2]} 9... O-O {[%clk
0:04:34.6]} 10. Bd3 {[%clk 0:03:36.3]} 10... Bxd3 {[%clk 0:04:26]} 11. Qxd3
{[%clk 0:03:34.3]} 11... bxc5 {[%clk 0:04:24.8]} 12. Bxc5 {[%clk 0:03:22.8]}
12... Nc6 {[%clk 0:04:23.4]} 13. O-O {[%clk 0:03:18.8]} 13... d6 {[%clk
0:04:18.7]} 14. Bf2 {[%clk 0:03:14.3]} 14... a5 {[%clk 0:04:17]} 15. Ng5 {[%clk
0:03:04.2]} 15... h6 {[%clk 0:04:13]} 16. Nf3 {[%clk 0:02:53.8]} 16... e6 {[%clk
0:04:10.4]} 17. Bh4 {[%clk 0:02:49.6]} 17... Qb6+ {[%clk 0:04:08.3]} 18. Kh1
{[%clk 0:02:38.6]} 18... d5 {[%clk 0:04:03.8]} 19. Rab1 {[%clk 0:02:26]} 19...
Qa6 {[%clk 0:03:54.8]} 20. Qd2 {[%clk 0:02:14.7]} 20... Qc4 {[%clk 0:03:52]} 21.
Bf2 {[%clk 0:02:11.7]} 21... Qxa2 {[%clk 0:03:49.4]} 22. h4 {[%clk 0:01:55.5]}
22... h5 {[%clk 0:03:46.3]} 23. Nd4 {[%clk 0:01:34.9]} 23... Nxd4 {[%clk
0:03:42.2]} 24. Bxd4 {[%clk 0:01:34.8]} 24... Bxd4 {[%clk 0:03:40.7]} 25. Qxd4
{[%clk 0:01:34.7]} 25... Qc4 {[%clk 0:03:39.7]} 26. Qf6 {[%clk 0:01:33.1]} 26...
Ra6 {[%clk 0:03:29]} 27. f5 {[%clk 0:01:22.1]} 27... exf5 {[%clk 0:03:27.5]} 28.
Qg5 {[%clk 0:01:19.8]} 28... Qg4 {[%clk 0:03:25.8]} 29. Qe7 {[%clk 0:01:16.7]}
29... Re6 {[%clk 0:03:23.1]} 0-1